[Event "The Kvibergspelen 2024"]
[Site "Kviberg Park Hotel & Conference, Krutvagen 2, Gothenburg, Sweden"]
[Date "2024.09.06"]
[Round "4.16"]
[White "Olsson, Thomas"]
[Black "Al Waeli, Laith"]
[Result "1/2-1/2"]
[TimeControl "15 minutes + 5 seconds per move from move one (Round 1 - 4) / 90 minutes + 30 seconds per move from move one (Round 5 - 8)"]
[BlackTitle "FM"]
[WhiteFideId "1702696"]
[BlackFideId "4801059"]
[WhiteElo "1902"]
[BlackElo "2049"]

1. e4 {[%clk 00:15:05]} {[%emt 00:00:03]} d5 {[%clk 00:13:33]} {[%emt
00:01:38]} 2. exd5 {[%clk 00:14:17]} {[%emt 00:00:54]} Qxd5 {[%clk 00:13:36]}
{[%emt 00:00:02]} 3. Nc3 {[%clk 00:14:19]} {[%emt 00:00:03]} Qd6 {[%clk
00:13:39]} {[%emt 00:00:02]} 4. g3 {[%clk 00:13:59]} {[%emt 00:00:24]} Nf6
{[%clk 00:13:40]} {[%emt 00:00:04]} 5. Bg2 {[%clk 00:14:01]} {[%emt 00:00:03]}
c6 {[%clk 00:13:43]} {[%emt 00:00:02]} 6. Nge2 {[%clk 00:13:56]} {[%emt
00:00:09]} e5 {[%clk 00:13:03]} {[%emt 00:00:46]} 7. d4 {[%clk 00:13:32]}
{[%emt 00:00:28]} exd4 {[%clk 00:11:26]} {[%emt 00:01:42]} 8. Qxd4 {[%clk
00:13:29]} {[%emt 00:00:09]} Qxd4 {[%clk 00:10:58]} {[%emt 00:00:33]} 9. Nxd4
{[%clk 00:13:29]} {[%emt 00:00:04]} Bb4 {[%clk 00:10:30]} {[%emt 00:00:34]} 10.
Bd2 {[%clk 00:13:15]} {[%emt 00:00:19]} O-O {[%clk 00:10:22]} {[%emt 00:00:11]}
11. f3 {[%clk 00:10:01]} {[%emt 00:03:20]} Re8+ {[%clk 00:10:12]} {[%emt
00:00:17]} 12. Nde2 {[%clk 00:09:45]} {[%emt 00:00:21]} Bf5 {[%clk 00:10:01]}
{[%emt 00:00:15]} 13. O-O-O {[%clk 00:09:32]} {[%emt 00:00:17]} Nbd7 {[%clk
00:09:15]} {[%emt 00:00:52]} 14. Nd4 {[%clk 00:09:25]} {[%emt 00:00:12]} Bg6
{[%clk 00:08:57]} {[%emt 00:00:23]} 15. a3 {[%emt 00:00:47]} Bc5 {[%clk
00:08:45]} {[%emt 00:00:15]} 16. Nb3 {[%clk 00:08:40]} {[%emt 00:00:11]} Bb6
{[%clk 00:08:45]} {[%emt 00:00:05]} 17. Rhe1 {[%clk 00:08:24]} {[%emt
00:00:19]} Ne5 {[%clk 00:07:11]} {[%emt 00:01:39]} 18. Na4 {[%clk 00:06:48]}
{[%emt 00:01:41]} Nc4 {[%clk 00:05:40]} {[%emt 00:01:37]} 19. Nxb6 {[%clk
00:06:42]} {[%emt 00:00:11]} axb6 {[%clk 00:05:44]} {[%emt 00:00:02]} 20. Rxe8+
{[%clk 00:05:59]} {[%emt 00:00:47]} Rxe8 {[%clk 00:05:48]} {[%emt 00:00:01]} 21.
Re1 {[%clk 00:05:58]} {[%emt 00:00:06]} Rd8 {[%clk 00:05:45]} {[%emt 00:00:07]}
22. Bg5 {[%clk 00:05:48]} {[%emt 00:00:15]} Kf8 {[%clk 00:05:23]} {[%emt
00:00:28]} 23. Bf1 {[%clk 00:05:35]} {[%emt 00:00:18]} Nd6 {[%clk 00:03:49]}
{[%emt 00:01:38]} 24. Rd1 {[%clk 00:05:27]} {[%emt 00:00:13]} h6 {[%clk
00:03:50]} {[%emt 00:00:05]} 25. Bf4 {[%clk 00:05:24]} {[%emt 00:00:07]} Ke7
{[%clk 00:03:10]} {[%emt 00:00:45]} 26. Re1+ {[%clk 00:05:12]} {[%emt
00:00:17]} Kf8 {[%clk 00:03:11]} {[%emt 00:00:05]} 27. Rd1 {[%clk 00:05:12]}
{[%emt 00:00:04]} Ke7 {[%clk 00:03:14]} {[%emt 00:00:02]} 28. Re1+ {[%clk
00:05:14]} {[%emt 00:00:02]} Kf8 {[%clk 00:02:56]} {[%emt 00:00:23]} 29. Rd1
{[%clk 00:05:17]} {[%emt 00:00:02]} 1/2-1/2

[Event "The Kvibergspelen 2024"]
[Site "Kviberg Park Hotel & Conference, Krutvagen 2, Gothenburg, Sweden"]
[Date "2024.09.06"]
[Round "4.17"]
[White "Kleist, Axel"]
[Black "Karlsson, Stefan"]
[Result "0-1"]
[TimeControl "15 minutes + 5 seconds per move from move one (Round 1 - 4) / 90 minutes + 30 seconds per move from move one (Round 5 - 8)"]
[WhiteFideId "1764322"]
[BlackFideId "1771183"]
[WhiteElo "1855"]
[BlackElo "2035"]

1. e4 {[%clk 00:15:09]} {[%emt 00:00:01]} c5 {[%clk 00:15:09]} {[%emt
00:00:01]} 2. a3 {[%clk 00:15:12]} g6 {[%clk 00:14:47]} {[%emt 00:00:28]} 3. h4
{[%clk 00:15:15]} h6 {[%clk 00:14:11]} {[%emt 00:00:44]} 4. Bc4 {[%clk
00:15:08]} Nc6 {[%clk 00:13:56]} {[%emt 00:00:32]} 5. Nc3 {[%clk 00:15:01]} Bg7
{[%clk 00:13:50]} {[%emt 00:00:23]} 6. d3 {[%clk 00:14:56]} e6 {[%clk
00:13:40]} {[%emt 00:00:24]} 7. h5 {[%clk 00:14:37]} g5 {[%clk 00:11:47]}
{[%emt 00:02:22]} 8. f4 {[%clk 00:14:41]} d5 {[%clk 00:09:44]} {[%emt
00:02:10]} 9. exd5 {[%clk 00:13:23]} Bxc3+ {[%clk 00:09:45]} {[%emt 00:01:26]}
10. bxc3 {[%clk 00:13:06]} exd5 {[%clk 00:09:39]} {[%emt 00:00:34]} 11. Bb5
{[%clk 00:12:42]} Qf6 {[%clk 00:06:47]} {[%emt 00:03:25]} 12. fxg5 {[%clk
00:08:08]} hxg5 {[%clk 00:06:37]} {[%emt 00:04:55]} 13. Bb2 {[%clk 00:07:22]}
Nge7 {[%clk 00:05:42]} {[%emt 00:01:51]} 14. Qf3 {[%clk 00:07:17]} Bf5 {[%clk
00:03:50]} {[%emt 00:02:05]} 15. O-O-O {[%clk 00:05:04]} g4 {[%clk 00:03:51]}
{[%emt 00:02:23]} 16. Qe3 {[%clk 00:04:05]} Qh6 {[%clk 00:03:26]} {[%emt
00:01:34]} 17. Bxc6+ {[%clk 00:02:43]} bxc6 {[%clk 00:03:30]} {[%emt 00:01:30]}
18. Re1 {[%clk 00:02:45]} Kd7 {[%clk 00:03:08]} {[%emt 00:00:29]} 19. Qxh6
{[%clk 00:02:17]} Rxh6 {[%clk 00:03:12]} 20. Ne2 {[%clk 00:02:17]} Be6 {[%clk
00:03:08]} 21. a4 {[%clk 00:01:50]} {[%emt 00:02:02]} Nf5 {[%clk 00:01:02]}
{[%emt 00:01:29]} 22. Ba3 {[%emt 00:00:10]} c4 {[%clk 00:00:38]} {[%emt
00:00:23]} 23. dxc4 {[%clk 00:01:48]} {[%emt 00:00:08]} dxc4 {[%clk 00:00:42]}
{[%emt 00:00:01]} 24. Nf4 {[%clk 00:00:58]} {[%emt 00:00:55]} Ng3 {[%clk
00:00:26]} {[%emt 00:00:21]} 25. Rh4 {[%clk 00:00:49]} {[%emt 00:00:13]} Rah8
{[%clk 00:00:22]} {[%emt 00:00:09]} 26. Nxe6 {[%clk 00:00:39]} {[%emt
00:00:15]} Rxe6 {[%clk 00:00:16]} {[%emt 00:00:12]} 27. Rd1+ {[%clk 00:00:30]}
{[%emt 00:00:14]} Kc7 {[%clk 00:00:13]} {[%emt 00:00:09]} 28. Rxg4 {[%clk
00:00:31]} {[%emt 00:00:03]} Nxh5 {[%clk 00:00:10]} {[%emt 00:00:08]} 29. Rxc4
{[%clk 00:00:27]} {[%emt 00:00:09]} Rg8 {[%clk 00:00:11]} {[%emt 00:00:03]} 30.
Rcd4 {[%emt 00:00:15]} Rxg2 {[%clk 00:00:09]} {[%emt 00:00:05]} 31. Rd7+ {[%emt
00:00:02]} Kb6 {[%clk 00:00:12]} 32. Rxf7 {[%clk 00:00:21]} {[%emt 00:00:08]}
Ree2 {[%clk 00:00:16]} 33. Bb4 {[%clk 00:00:16]} {[%emt 00:00:11]} Rxc2+ {[%clk
00:00:18]} {[%emt 00:00:02]} 34. Kb1 {[%clk 00:00:17]} {[%emt 00:00:04]} Rb2+
{[%clk 00:00:18]} {[%emt 00:00:05]} 35. Ka1 {[%clk 00:00:19]} {[%emt 00:00:02]}
Ra2+ {[%clk 00:00:21]} {[%emt 00:00:02]} 36. Kb1 {[%clk 00:00:23]} {[%emt
00:00:02]} Ng3 {[%clk 00:00:11]} {[%emt 00:00:15]} 37. a5+ {[%clk 00:00:25]}
{[%emt 00:00:04]} Ka6 {[%clk 00:00:15]} {[%emt 00:00:01]} 38. Rg7 {[%clk
00:00:08]} {[%emt 00:00:21]} Rgb2+ {[%clk 00:00:18]} {[%emt 00:00:02]} 0-1

[Event "The Kvibergspelen 2024"]
[Site "Kviberg Park Hotel & Conference, Krutvagen 2, Gothenburg, Sweden"]
[Date "2024.09.06"]
[Round "4.18"]
[White "Lilliehook, Victor"]
[Black "Johansson, William"]
[Result "0-1"]
[TimeControl "15 minutes + 5 seconds per move from move one (Round 1 - 4) / 90 minutes + 30 seconds per move from move one (Round 5 - 8)"]
[WhiteFideId "1752103"]
[BlackFideId "1744070"]
[WhiteElo "2017"]
[BlackElo "1899"]

1. e4 {[%clk 00:15:07]} {[%emt 00:00:03]} c6 {[%clk 00:15:09]} {[%emt
00:00:01]} 2. d4 {[%clk 00:15:11]} d5 {[%clk 00:15:13]} {[%emt 00:00:02]} 3.
exd5 {[%clk 00:15:15]} {[%emt 00:00:01]} cxd5 {[%clk 00:15:18]} {[%emt
00:00:01]} 4. c4 {[%clk 00:15:19]} Nf6 {[%emt 00:00:03]} 5. Nc3 Nc6 {[%clk
00:15:22]} {[%emt 00:00:04]} 6. Nf3 {[%clk 00:15:28]} Bg4 {[%clk 00:15:26]}
{[%emt 00:00:02]} 7. Be3 {[%clk 00:15:32]} e6 {[%clk 00:15:21]} {[%emt
00:00:10]} 8. c5 {[%clk 00:15:36]} Be7 {[%clk 00:15:20]} {[%emt 00:00:07]} 9.
Bb5 {[%clk 00:15:39]} Qc7 {[%clk 00:14:53]} {[%emt 00:00:31]} 10. h3 {[%clk
00:15:25]} {[%emt 00:00:19]} Bh5 {[%clk 00:14:56]} {[%emt 00:00:02]} 11. O-O
{[%clk 00:13:54]} {[%emt 00:01:36]} O-O {[%clk 00:14:58]} {[%emt 00:00:03]} 12.
Bxc6 {[%clk 00:13:15]} {[%emt 00:00:44]} bxc6 {[%clk 00:14:56]} {[%emt
00:00:08]} 13. g4 {[%clk 00:13:17]} {[%emt 00:00:03]} Bg6 {[%clk 00:14:58]}
{[%emt 00:00:02]} 14. Ne2 {[%clk 00:13:21]} {[%emt 00:00:02]} h5 {[%clk
00:13:14]} {[%emt 00:01:48]} 15. g5 {[%clk 00:10:41]} {[%emt 00:02:45]} Ne4
{[%clk 00:13:17]} {[%emt 00:00:02]} 16. h4 {[%clk 00:10:07]} {[%emt 00:00:39]}
f6 {[%clk 00:13:14]} {[%emt 00:00:08]} 17. Nf4 {[%clk 00:09:13]} {[%emt
00:01:00]} Bf5 {[%clk 00:13:18]} {[%emt 00:00:01]} 18. g6 {[%clk 00:05:23]}
{[%emt 00:03:55]} e5 {[%clk 00:11:25]} {[%emt 00:01:58]} 19. Nxh5 {[%clk
00:03:22]} {[%emt 00:02:06]} Bg4 {[%clk 00:10:41]} {[%emt 00:00:49]} 20. Ng3
{[%clk 00:02:44]} {[%emt 00:00:43]} Nxg3 {[%clk 00:10:42]} {[%emt 00:00:04]} 21.
fxg3 {[%clk 00:02:10]} {[%emt 00:00:40]} e4 {[%clk 00:10:45]} {[%emt 00:00:01]}
22. Bf4 {[%clk 00:02:14]} Qd7 {[%clk 00:10:36]} {[%emt 00:00:14]} 23. Qb3
{[%clk 00:00:32]} {[%emt 00:01:48]} Bxf3 {[%clk 00:10:30]} {[%emt 00:00:10]} 24.
Rxf3 {[%clk 00:00:36]} {[%emt 00:00:01]} exf3 25. Qxf3 {[%clk 00:00:39]} Qf5
{[%clk 00:09:39]} {[%emt 00:00:59]} 26. h5 {[%clk 00:00:41]} {[%emt 00:00:04]}
Qe4 {[%clk 00:09:26]} {[%emt 00:00:18]} 27. Qf2 {[%clk 00:00:45]} Rfe8 {[%clk
00:08:41]} {[%emt 00:00:50]} 28. Re1 {[%clk 00:00:19]} {[%emt 00:00:31]} Qf5
{[%clk 00:08:44]} {[%emt 00:00:02]} 29. Qf3 {[%clk 00:00:22]} {[%emt 00:00:02]}
Bf8 {[%clk 00:08:37]} {[%emt 00:00:12]} 30. Rf1 {[%clk 00:00:18]} {[%emt
00:00:09]} Qe4 {[%clk 00:08:33]} {[%emt 00:00:09]} 31. Qg4 {[%clk 00:00:20]}
{[%emt 00:00:02]} Qxd4+ {[%clk 00:08:09]} {[%emt 00:00:30]} 32. Kh1 {[%clk
00:00:09]} {[%emt 00:00:16]} Qe4+ {[%clk 00:07:54]} {[%emt 00:00:21]} 33. Kh2
{[%clk 00:00:10]} {[%emt 00:00:03]} Qe2+ {[%clk 00:07:57]} {[%emt 00:00:02]} 34.
Qxe2 {[%clk 00:00:11]} {[%emt 00:00:04]} Rxe2+ {[%clk 00:08:01]} {[%emt
00:00:02]} 35. Kh3 {[%clk 00:00:15]} Bxc5 {[%clk 00:08:01]} {[%emt 00:00:06]}
36. Kg4 {[%clk 00:00:17]} {[%emt 00:00:02]} Rae8 {[%clk 00:08:00]} {[%emt
00:00:05]} 37. Rc1 {[%clk 00:00:14]} {[%emt 00:00:08]} Be3 {[%clk 00:07:46]}
{[%emt 00:00:19]} 38. Rxc6 {[%clk 00:00:09]} {[%emt 00:00:11]} Bxf4 {[%clk
00:07:50]} {[%emt 00:00:01]} 39. gxf4 {[%clk 00:00:13]} {[%emt 00:00:02]} Rd8
{[%clk 00:07:25]} {[%emt 00:00:28]} 40. Rc7 {[%clk 00:00:14]} {[%emt 00:00:05]}
Rh2 {[%clk 00:07:02]} {[%emt 00:00:27]} 41. Rxa7 {[%clk 00:00:08]} {[%emt
00:00:11]} d4 {[%clk 00:07:06]} {[%emt 00:00:01]} 0-1

[Event "The Kvibergspelen 2024"]
[Site "Kviberg Park Hotel & Conference, Krutvagen 2, Gothenburg, Sweden"]
[Date "2024.09.06"]
[Round "4.19"]
[White "Marandi, Nader"]
[Black "Ostensson, Julia"]
[Result "0-1"]
[TimeControl "15 minutes + 5 seconds per move from move one (Round 1 - 4) / 90 minutes + 30 seconds per move from move one (Round 5 - 8)"]
[WhiteFideId "12536490"]
[BlackFideId "1747703"]
[WhiteElo "1722"]
[BlackElo "2016"]

1. e4 {[%clk 00:15:08]} {[%emt 00:00:02]} c5 {[%clk 00:15:09]} {[%emt
00:00:02]} 2. Nc3 {[%clk 00:15:08]} {[%emt 00:00:06]} e6 {[%clk 00:15:11]}
{[%emt 00:00:03]} 3. g3 {[%clk 00:15:11]} {[%emt 00:00:01]} d5 {[%clk
00:14:48]} {[%emt 00:00:28]} 4. exd5 {[%clk 00:14:43]} {[%emt 00:00:33]} exd5
{[%clk 00:14:51]} {[%emt 00:00:02]} 5. Bg2 {[%clk 00:14:46]} {[%emt 00:00:02]}
Nf6 {[%clk 00:14:47]} {[%emt 00:00:08]} 6. d4 {[%clk 00:14:15]} {[%emt
00:00:36]} cxd4 {[%clk 00:14:03]} {[%emt 00:00:50]} 7. Qxd4 {[%clk 00:14:17]}
{[%emt 00:00:03]} Nc6 {[%clk 00:14:05]} {[%emt 00:00:03]} 8. Qd1 {[%clk
00:12:59]} {[%emt 00:01:23]} Bb4 {[%clk 00:10:57]} {[%emt 00:03:13]} 9. a3
{[%clk 00:12:24]} {[%emt 00:00:40]} Ba5 {[%clk 00:08:57]} {[%emt 00:02:05]} 10.
Bd2 {[%clk 00:10:38]} {[%emt 00:01:51]} O-O {[%clk 00:08:17]} {[%emt 00:00:46]}
11. Nxd5 {[%clk 00:08:34]} {[%emt 00:02:09]} Nxd5 {[%clk 00:07:43]} {[%emt
00:00:38]} 12. Bxa5 {[%clk 00:08:35]} {[%emt 00:00:04]} Qxa5+ {[%clk 00:07:10]}
{[%emt 00:00:38]} 13. b4 {[%clk 00:08:15]} {[%emt 00:00:24]} Re8+ {[%clk
00:04:40]} {[%emt 00:02:36]} 14. Ne2 {[%clk 00:08:02]} {[%emt 00:00:19]} Qa6
{[%clk 00:02:18]} {[%emt 00:02:26]} 15. Bxd5 {[%clk 00:07:51]} {[%emt
00:00:16]} Nd4 {[%clk 00:01:51]} {[%emt 00:00:32]} 16. O-O {[%clk 00:06:26]}
{[%emt 00:01:30]} Nxe2+ {[%clk 00:01:36]} {[%emt 00:00:20]} 17. Kh1 {[%clk
00:06:26]} {[%emt 00:00:06]} Bg4 {[%clk 00:00:51]} {[%emt 00:00:50]} 18. f3
{[%clk 00:05:59]} {[%emt 00:00:32]} Nc3 {[%clk 00:00:23]} {[%emt 00:00:33]} 19.
Bxf7+ {[%clk 00:03:38]} {[%emt 00:02:26]} Kxf7 {[%clk 00:00:27]} {[%emt
00:00:01]} 20. fxg4+ {[%clk 00:03:41]} {[%emt 00:00:02]} Kg8 {[%clk 00:00:31]}
21. Qd3 {[%clk 00:02:59]} {[%emt 00:00:48]} Qc6+ {[%clk 00:00:16]} {[%emt
00:00:21]} 22. Qf3 {[%clk 00:02:45]} {[%emt 00:00:18]} Qxf3+ {[%clk 00:00:06]}
{[%emt 00:00:16]} 23. Rxf3 {[%clk 00:02:48]} {[%emt 00:00:02]} Ne4 {[%clk
00:00:10]} 24. Kg2 {[%clk 00:02:37]} {[%emt 00:00:15]} Rac8 {[%clk 00:00:13]}
{[%emt 00:00:03]} 25. Rc1 {[%clk 00:02:14]} {[%emt 00:00:27]} Nf6 {[%clk
00:00:16]} {[%emt 00:00:02]} 26. g5 {[%clk 00:02:11]} {[%emt 00:00:08]} Ne4
{[%clk 00:00:08]} {[%emt 00:00:13]} 27. c4 {[%clk 00:01:47]} {[%emt 00:00:29]}
Nxg5 {[%clk 00:00:12]} {[%emt 00:00:02]} 28. Rf2 {[%clk 00:01:10]} {[%emt
00:00:41]} h6 {[%clk 00:00:10]} {[%emt 00:00:08]} 29. a4 {[%clk 00:00:59]}
{[%emt 00:00:15]} Re4 {[%clk 00:00:13]} {[%emt 00:00:02]} 30. Rfc2 {[%clk
00:00:58]} {[%emt 00:00:07]} Rd4 {[%clk 00:00:14]} {[%emt 00:00:03]} 31. a5
{[%clk 00:00:50]} {[%emt 00:00:14]} Ne4 {[%clk 00:00:12]} {[%emt 00:00:06]} 32.
b5 {[%clk 00:00:44]} {[%emt 00:00:11]} Nc5 {[%clk 00:00:16]} {[%emt 00:00:02]}
33. b6 axb6 {[%clk 00:00:19]} 34. axb6 {[%clk 00:00:24]} {[%emt 00:00:03]} Nd3
{[%clk 00:00:14]} {[%emt 00:00:11]} 35. Ra1 {[%clk 00:00:08]} {[%emt 00:00:21]}
Rdxc4 {[%clk 00:00:17]} {[%emt 00:00:02]} 36. Rxc4 Rxc4 {[%clk 00:00:21]} 37.
Ra8+ {[%clk 00:00:14]} {[%emt 00:00:01]} Kh7 {[%clk 00:00:25]} {[%emt
00:00:01]} 38. Ra7 {[%clk 00:00:18]} {[%emt 00:00:01]} Nc5 {[%clk 00:00:28]}
{[%emt 00:00:01]} 39. Ra5 {[%clk 00:00:18]} {[%emt 00:00:05]} Kg6 {[%clk
00:00:14]} {[%emt 00:00:19]} 40. Kf3 {[%clk 00:00:17]} {[%emt 00:00:05]} Kf6
{[%clk 00:00:18]} {[%emt 00:00:02]} 41. h4 {[%clk 00:00:11]} {[%emt 00:00:11]}
Ke6 {[%clk 00:00:22]} 42. h5 {[%clk 00:00:06]} {[%emt 00:00:10]} Kd6 {[%clk
00:00:25]} {[%emt 00:00:02]} 43. Rb5 {[%clk 00:00:09]} {[%emt 00:00:03]} Kc6
{[%clk 00:00:27]} {[%emt 00:00:02]} 44. Rb1 {[%clk 00:00:11]} {[%emt 00:00:04]}
Ne6 {[%clk 00:00:25]} {[%emt 00:00:06]} 45. Re1 {[%clk 00:00:06]} {[%emt
00:00:09]} Ng5+ {[%clk 00:00:29]} {[%emt 00:00:02]} 46. Kg2 {[%clk 00:00:09]}
{[%emt 00:00:02]} Kxb6 {[%clk 00:00:31]} {[%emt 00:00:04]} 47. Re7 {[%clk
00:00:10]} {[%emt 00:00:04]} Rc7 {[%clk 00:00:35]} {[%emt 00:00:01]} 48. Re5
{[%clk 00:00:12]} {[%emt 00:00:02]} Kc6 {[%clk 00:00:36]} {[%emt 00:00:04]} 49.
g4 {[%clk 00:00:10]} {[%emt 00:00:07]} b5 {[%clk 00:00:40]} {[%emt 00:00:01]}
50. Kf2 {[%clk 00:00:09]} {[%emt 00:00:05]} b4 {[%clk 00:00:37]} {[%emt
00:00:08]} 51. Ke2 {[%clk 00:00:10]} {[%emt 00:00:04]} b3 {[%clk 00:00:33]}
{[%emt 00:00:09]} 52. Kd1 {[%clk 00:00:07]} {[%emt 00:00:08]} b2 {[%clk
00:00:32]} {[%emt 00:00:07]} 53. Kc2 {[%clk 00:00:09]} {[%emt 00:00:02]} Kd6+
{[%clk 00:00:36]} {[%emt 00:00:01]} 0-1

[Event "The Kvibergspelen 2024"]
[Site "Kviberg Park Hotel & Conference, Krutvagen 2, Gothenburg, Sweden"]
[Date "2024.09.06"]
[Round "4.20"]
[White "Wickstrom, Carina"]
[Black "Dingertz, Filip"]
[Result "1-0"]
[TimeControl "15 minutes + 5 seconds per move from move one (Round 1 - 4) / 90 minutes + 30 seconds per move from move one (Round 5 - 8)"]
[WhiteFideId "1743201"]
[BlackFideId "1757288"]
[WhiteElo "2015"]
[BlackElo "1858"]

1. Nf3 {[%clk 00:15:09]} d5 {[%clk 00:15:09]} {[%emt 00:00:02]} 2. g3 {[%clk
00:15:10]} {[%emt 00:00:03]} Nf6 {[%clk 00:15:11]} {[%emt 00:00:04]} 3. Bg2
{[%clk 00:15:13]} {[%emt 00:00:01]} e6 {[%clk 00:15:13]} {[%emt 00:00:05]} 4.
O-O {[%clk 00:15:11]} {[%emt 00:00:06]} Be7 {[%clk 00:15:15]} {[%emt 00:00:02]}
5. d4 {[%clk 00:15:06]} {[%emt 00:00:11]} O-O {[%clk 00:15:17]} {[%emt
00:00:02]} 6. c4 {[%clk 00:15:05]} {[%emt 00:00:07]} c6 {[%clk 00:15:20]}
{[%emt 00:00:02]} 7. Nc3 {[%clk 00:15:03]} {[%emt 00:00:06]} Nbd7 {[%clk
00:15:09]} {[%emt 00:00:17]} 8. Nd2 {[%clk 00:14:14]} {[%emt 00:00:54]} c5
{[%clk 00:11:21]} {[%emt 00:03:53]} 9. dxc5 {[%clk 00:12:55]} {[%emt 00:01:24]}
d4 {[%clk 00:11:00]} {[%emt 00:00:26]} 10. Nce4 {[%clk 00:12:11]} {[%emt
00:00:49]} Nxc5 {[%clk 00:10:59]} {[%emt 00:00:06]} 11. Nxc5 {[%clk 00:11:02]}
{[%emt 00:01:14]} Bxc5 {[%clk 00:11:02]} {[%emt 00:00:02]} 12. Nb3 {[%clk
00:10:48]} {[%emt 00:00:19]} Qd6 {[%clk 00:10:08]} {[%emt 00:00:59]} 13. Bg5
{[%clk 00:10:06]} {[%emt 00:00:46]} Nd7 {[%clk 00:09:44]} {[%emt 00:00:28]} 14.
Qd3 {[%clk 00:08:46]} {[%emt 00:01:26]} h6 {[%clk 00:09:26]} {[%emt 00:00:23]}
15. Bd2 {[%clk 00:08:38]} {[%emt 00:00:12]} Rb8 {[%clk 00:08:34]} {[%emt
00:00:58]} 16. Rfd1 {[%clk 00:08:08]} {[%emt 00:00:35]} e5 {[%clk 00:07:36]}
{[%emt 00:01:03]} 17. Qc2 {[%clk 00:07:47]} {[%emt 00:00:26]} Nb6 {[%clk
00:06:10]} {[%emt 00:01:31]} 18. Nxc5 Qxc5 {[%clk 00:06:14]} 19. b3 {[%clk
00:07:13]} {[%emt 00:00:32]} Be6 {[%clk 00:05:44]} {[%emt 00:00:34]} 20. e3
{[%clk 00:07:06]} {[%emt 00:00:11]} Bg4 {[%clk 00:05:07]} {[%emt 00:00:42]} 21.
Re1 {[%clk 00:06:45]} {[%emt 00:00:26]} Rfd8 {[%clk 00:04:22]} {[%emt
00:00:50]} 22. exd4 {[%clk 00:06:39]} {[%emt 00:00:11]} exd4 {[%clk 00:04:26]}
{[%emt 00:00:01]} 23. Bf4 {[%clk 00:06:37]} {[%emt 00:00:07]} d3 {[%clk
00:02:56]} {[%emt 00:01:36]} 24. Qd2 {[%clk 00:06:25]} {[%emt 00:00:17]} Rbc8
{[%clk 00:02:59]} {[%emt 00:00:03]} 25. Bxb7 {[%clk 00:06:11]} {[%emt
00:00:18]} Rc6 {[%clk 00:03:02]} {[%emt 00:00:01]} 26. Re3 {[%clk 00:04:28]}
{[%emt 00:01:49]} Qd4 {[%clk 00:02:15]} {[%emt 00:00:52]} 27. Be5 {[%clk
00:04:03]} {[%emt 00:00:30]} Qd7 {[%clk 00:02:05]} {[%emt 00:00:15]} 28. Bxc6
{[%clk 00:03:58]} {[%emt 00:00:10]} Qxc6 {[%clk 00:02:07]} {[%emt 00:00:03]} 29.
Rxd3 {[%clk 00:03:47]} {[%emt 00:00:16]} Re8 {[%clk 00:02:05]} {[%emt
00:00:06]} 30. Rd8 {[%clk 00:03:34]} {[%emt 00:00:18]} Rxd8 {[%clk 00:02:04]}
{[%emt 00:00:06]} 31. Qxd8+ {[%clk 00:03:38]} {[%emt 00:00:02]} Kh7 {[%clk
00:02:08]} 32. Qd3+ {[%clk 00:03:02]} {[%emt 00:00:42]} f5 {[%clk 00:02:02]}
{[%emt 00:00:11]} 33. Re1 {[%clk 00:02:53]} {[%emt 00:00:14]} Nd7 {[%clk
00:01:58]} {[%emt 00:00:09]} 34. Qd5 {[%clk 00:02:36]} {[%emt 00:00:22]} Nxe5
{[%clk 00:01:43]} {[%emt 00:00:20]} 35. Rxe5 {[%clk 00:02:30]} {[%emt
00:00:11]} Qf6 {[%clk 00:01:19]} {[%emt 00:00:29]} 36. c5 {[%clk 00:02:18]}
{[%emt 00:00:17]} Qg5 {[%clk 00:01:10]} {[%emt 00:00:15]} 37. Re3 {[%clk
00:02:04]} {[%emt 00:00:18]} Qf6 {[%clk 00:00:57]} {[%emt 00:00:19]} 38. c6
{[%clk 00:01:40]} {[%emt 00:00:30]} Qa1+ {[%clk 00:00:23]} {[%emt 00:00:38]} 39.
Kg2 {[%clk 00:01:41]} {[%emt 00:00:03]} Bh3+ {[%clk 00:00:07]} {[%emt
00:00:21]} 40. Kxh3 {[%clk 00:01:40]} {[%emt 00:00:06]} Qf1+ {[%clk 00:00:11]}
{[%emt 00:00:02]} 41. Qg2 {[%clk 00:01:40]} {[%emt 00:00:05]} Qb5 {[%clk
00:00:11]} {[%emt 00:00:05]} 42. Re1 {[%clk 00:01:16]} {[%emt 00:00:29]} f4
{[%clk 00:00:09]} {[%emt 00:00:07]} 43. Qe4+ {[%clk 00:01:15]} {[%emt
00:00:06]} Kh8 {[%clk 00:00:09]} {[%emt 00:00:05]} 44. Rc1 {[%clk 00:00:51]}
{[%emt 00:00:30]} f3 {[%clk 00:00:07]} {[%emt 00:00:06]} 45. Qxf3 {[%clk
00:00:51]} {[%emt 00:00:05]} 1-0